bitfinex-derivatives/quotes_BTCF0:USTF0_20250514
["timestamp","ask_amount","ask_price","bid_price","bid_amount"]
[1747217479723,1.83038604,103650.0,103640.0,0.15968318]
[1747217480327,1.75218872,103650.0,103640.0,0.15968318]
[1747217480634,1.83038604,103650.0,103640.0,0.15968318]
[1747217481322,1.69135474,103650.0,103640.0,0.15968318]
[1747217484135,1.61315742,103650.0,103640.0,0.15968318]
[1747217484533,0.192966,103640.0,103630.0,0.03522985]
[1747217484837,0.192966,103640.0,103630.0,0.00192985]
[1747217484838,1.25186351,103640.0,103630.0,0.00192985]
[1747217485035,1.17366619,103640.0,103630.0,0.00192985]
[1747217485237,1.41386351,103640.0,103630.0,0.00192985]
[1747217485634,1.41386351,103640.0,103630.0,0.09841303]
[1747217485835,1.41386351,103640.0,103630.0,0.10141303]
[1747217488134,1.41386351,103640.0,103630.0,0.13441303]
[1747217489333,1.56869663,103640.0,103630.0,0.13441303]
[1747217489941,1.41230199,103640.0,103630.0,0.13441303]
[1747217490144,1.56869663,103640.0,103630.0,0.10141303]
[1747217490438,1.56869663,103640.0,103630.0,0.003]
[1747217490638,0.1929846,103630.0,103620.0,0.0622]
[1747217490941,0.94352192,103630.0,103620.0,0.15869249]
[1747217491143,1.10552192,103630.0,103620.0,0.15869249]
[1747217491335,1.0273246,103630.0,103620.0,0.15869249]
[1747217491733,1.10552192,103630.0,103620.0,0.15869249]
[1747217491938,1.10552192,103630.0,103620.0,0.16169249]
[1747217492132,1.10552192,103630.0,103620.0,0.16469249]
[1747217493442,1.26035504,103630.0,103620.0,0.16469249]
[1747217493642,1.27010652,103630.0,103620.0,0.16469249]
[1747217495351,1.27572723,103630.0,103620.0,0.16469249]
[1747217497543,1.42324357,103630.0,103620.0,0.16469249]
[1747217497943,1.34504625,103630.0,103620.0,0.16469249]
[1747217498251,1.42324357,103630.0,103620.0,0.16469249]
[1747217498452,1.41762286,103630.0,103620.0,0.16469249]
[1747217498756,1.20218286,103630.0,103620.0,0.16469249]
[1747217499051,1.63262286,103630.0,103620.0,0.16469249]
[1747217500053,1.55442554,103630.0,103620.0,0.16469249]
[1747217500258,1.63262286,103630.0,103620.0,0.16469249]
[1747217501356,1.27182286,103630.0,103620.0,0.16469249]
[1747217501546,1.63262286,103630.0,103620.0,0.16469249]
[1747217504958,1.51766908,103630.0,103620.0,0.16469249]
[1747217506966,1.43947176,103630.0,103620.0,0.16469249]
[1747217507156,1.51766908,103630.0,103620.0,0.16469249]
[1747217508157,1.43947176,103630.0,103620.0,0.16469249]
[1747217508460,1.51766908,103630.0,103620.0,0.16469249]
[1747217508650,1.43947176,103630.0,103620.0,0.16469249]
[1747217508853,1.51766908,103630.0,103620.0,0.16469249]
[1747217511165,1.15686908,103630.0,103620.0,0.16469249]
[1747217511464,1.51766908,103630.0,103620.0,0.16469249]
[1747217512865,1.48664333,103630.0,103620.0,0.16469249]
[1747217513455,1.40844601,103630.0,103620.0,0.16469249]
[1747217513657,1.48664333,103630.0,103620.0,0.16469249]
[1747217513856,1.48664333,103630.0,103620.0,0.01274882]
[1747217514165,1.40844601,103630.0,103620.0,0.01274882]
[1747217514367,1.48664333,103630.0,103620.0,0.01274882]
[1747217514664,1.40844601,103630.0,103620.0,0.01274882]
[1747217514965,1.48664333,103630.0,103620.0,0.01274882]
[1747217515366,1.40844601,103630.0,103620.0,0.01274882]
[1747217515563,1.48664333,103630.0,103620.0,0.01274882]
[1747217515761,1.41406672,103630.0,103620.0,0.01274882]
[1747217515957,1.49226404,103630.0,103620.0,0.01274882]
[1747217516663,1.48664333,103630.0,103620.0,0.01274882]
[1747217517064,1.48664333,103630.0,103620.0,0.04424882]
[1747217517363,1.47689185,103630.0,103620.0,0.04424882]
[1747217518368,0.96825453,103630.0,103620.0,0.04424882]
[1747217518662,0.72799453,103630.0,103620.0,0.58654666]
[1747217518964,0.51135453,103630.0,103620.0,0.50834934]
[1747217519165,0.34935453,103630.0,103620.0,0.67034934]
[1747217520669,0.35592501,103630.0,103620.0,0.67034934]
[1747217520967,0.38702501,103630.0,103620.0,0.67034934]
[1747217521869,0.38702501,103630.0,103620.0,0.59215202]
[1747217522071,0.38702501,103630.0,103620.0,0.43015202]
[1747217523465,0.74782501,103630.0,103620.0,0.43015202]
[1747217523670,0.38702501,103630.0,103620.0,0.30015202]
[1747217523975,0.41882501,103630.0,103620.0,0.30015202]
[1747217524766,0.4725646,103630.0,103620.0,0.30015202]
[1747217526272,0.8333646,103630.0,103620.0,0.30015202]
[1747217526459,0.55080192,103630.0,103620.0,0.10714882]
[1747217526666,0.58380192,103630.0,103620.0,0.30015202]
[1747217527471,0.5056046,103630.0,103620.0,0.30015202]
[1747217527658,0.94460192,103630.0,103620.0,0.07464882]
[1747217527865,1.06766299,103630.0,103620.0,0.07464882]
[1747217528168,1.06766299,103630.0,103620.0,0.04424882]
[1747217529274,1.22966299,103630.0,103620.0,0.04424882]
[1747217529967,1.15146567,103630.0,103620.0,0.04424882]
[1747217530173,1.22966299,103630.0,103620.0,0.04424882]
[1747217530572,1.22966299,103630.0,103620.0,0.07664882]
[1747217531273,1.22966299,103630.0,103620.0,0.04424882]
[1747217531869,1.2941663,103630.0,103620.0,0.04424882]
[1747217532273,1.1321663,103630.0,103620.0,0.04424882]
[1747217533373,1.2941663,103630.0,103620.0,0.04424882]
[1747217534171,1.1321663,103630.0,103620.0,0.04424882]
[1747217535073,1.24607103,103630.0,103620.0,0.04424882]
[1747217536776,1.02935103,103630.0,103620.0,0.04424882]
[1747217536977,1.24563103,103630.0,103620.0,0.04424882]
[1747217538582,1.24563103,103630.0,103620.0,0.01274882]
[1747217538880,1.16739371,103630.0,103620.0,0.01274882]
[1747217539080,1.24559103,103630.0,103620.0,0.04484882]
[1747217540082,1.16739371,103630.0,103620.0,0.04484882]
[1747217541684,1.24559103,103630.0,103620.0,0.04484882]
[1747217542278,1.16739371,103630.0,103620.0,0.04484882]
[1747217542583,1.1316863,103630.0,103620.0,0.04484882]
[1747217548382,1.1309263,103630.0,103620.0,0.04484882]
[1747217548881,1.1310463,103630.0,103620.0,0.04484882]
[1747217549478,0.7702463,103630.0,103620.0,0.04484882]
[1747217549684,1.10636089,103630.0,103620.0,0.04484882]
[1747217550786,1.02816357,103630.0,103620.0,0.04484882]
[1747217552085,0.81256357,103630.0,103620.0,0.23785202]
[1747217552285,1.02776357,103630.0,103620.0,0.07804882]
[1747217554590,1.02776357,103630.0,103620.0,0.27105202]
[1747217556577,1.02776357,103630.0,103620.0,0.07804882]
[1747217556977,1.10596089,103630.0,103620.0,0.07804882]
[1747217558287,1.02776357,103630.0,103620.0,0.07804882]
[1747217561086,1.02776357,103630.0,103620.0,0.04484882]
[1747217561279,0.81256357,103630.0,103620.0,0.04484882]
[1747217561480,0.35586357,103630.0,103620.0,0.42754666]
[1747217561788,0.0398911,103630.0,103620.0,1.18694666]
[1747217561985,0.0398911,103630.0,103620.0,2.68694666]
[1747217562187,0.0398911,103630.0,103620.0,2.84894666]
[1747217562386,0.2328757,103630.0,103620.0,2.84894666]
[1747217564705,0.0398911,103630.0,103620.0,2.84894666]
[1747217565297,0.0398911,103630.0,103620.0,2.59894666]
[1747217566388,0.17206971,103630.0,103620.0,2.74931057]
[1747217567591,0.17206971,103630.0,103620.0,2.74368986]
[1747217569490,0.17206971,103630.0,103620.0,2.75718986]
[1747217569891,0.4501834,103640.0,103630.0,0.1929846]
[1747217570098,0.4019403,103640.0,103630.0,0.84888192]
[1747217570498,0.4019403,103640.0,103630.0,0.94538372]
[1747217571102,0.4019403,103640.0,103630.0,0.94638372]
[1747217571601,0.4019403,103640.0,103630.0,0.94738372]
[1747217572101,0.4019403,103640.0,103630.0,0.95696008]
[1747217574092,0.1274165,103640.0,103630.0,1.2500374]
[1747217574288,0.1274165,103640.0,103630.0,1.17184008]
[1747217575203,0.1274165,103640.0,103630.0,1.33384008]
[1747217575409,0.3203825,103640.0,103630.0,1.34734008]
[1747217575897,0.3520825,103640.0,103630.0,1.34734008]
[1747217577195,0.3825825,103640.0,103630.0,1.18534008]
[1747217579099,0.1591165,103640.0,103630.0,1.18534008]
[1747217579300,0.13944416,103640.0,103630.0,1.18534008]
[1747217579500,0.13944416,103640.0,103630.0,1.2635374]
[1747217579802,0.13944416,103640.0,103630.0,1.18534008]
[1747217580107,0.13944416,103640.0,103630.0,1.34734008]
[1747217580298,0.33241016,103640.0,103630.0,1.34734008]
[1747217581703,0.258666,103640.0,103630.0,1.34734008]
[1747217585811,0.258666,103640.0,103630.0,1.35296079]
[1747217590614,0.33241016,103640.0,103630.0,1.35296079]
[1747217592712,0.36401016,103640.0,103630.0,1.35296079]
[1747217592912,0.13944416,103640.0,103630.0,1.74249011]
[1747217593205,0.10774416,103640.0,103630.0,1.74249011]
[1747217594713,0.35527615,103650.0,103640.0,0.192966]
[1747217594714,0.13072555,103650.0,103640.0,0.192966]
[1747217594904,0.37965434,103650.0,103640.0,0.92496064]
[1747217595099,0.18670694,103650.0,103640.0,1.10046064]
[1747217595404,0.18670694,103650.0,103640.0,1.19694382]
[1747217595613,0.18670694,103650.0,103640.0,2.54054918]
[1747217595804,0.18670694,103650.0,103640.0,2.69694382]
[1747217596404,0.18770694,103650.0,103640.0,2.69694382]
[1747217597203,0.18770694,103650.0,103640.0,2.53494382]
[1747217597708,0.15530694,103650.0,103640.0,2.70962514]
[1747217598103,0.15530694,103650.0,103640.0,2.63142782]
[1747217598308,0.12390694,103650.0,103640.0,2.70962514]
[1747217599310,0.12390694,103650.0,103640.0,2.79442782]
[1747217600008,0.12290694,103650.0,103640.0,2.79542782]
[1747217600405,0.15340694,103650.0,103640.0,2.79542782]
[1747217600806,0.0305,103650.0,103640.0,2.79442782]
[1747217601115,0.03612071,103650.0,103640.0,2.63542782]
[1747217601417,0.03612071,103650.0,103640.0,2.63742782]
[1747217601810,0.06792071,103650.0,103640.0,2.63742782]
[1747217602214,0.06792071,103650.0,103640.0,2.48103318]
[1747217602719,0.06792071,103650.0,103640.0,2.69583318]
[1747217603016,0.06792071,103650.0,103640.0,3.06706782]
[1747217603513,0.06792071,103650.0,103640.0,2.97058382]
[1747217604109,0.06792071,103650.0,103640.0,2.81418918]
[1747217604301,0.06792071,103650.0,103640.0,2.97058382]
[1747217606825,0.00562071,103650.0,103640.0,2.97058382]
[1747217607117,0.51139406,103660.0,103650.0,0.1929474]
[1747217607316,0.43046016,103660.0,103650.0,0.87685934]
[1747217607811,0.43046016,103660.0,103650.0,0.97334252]
[1747217609220,0.59246016,103660.0,103650.0,0.97534252]
[1747217612316,0.59246016,103660.0,103650.0,0.8971452]
[1747217612516,0.59246016,103660.0,103650.0,0.97534252]
[1747217615225,0.59808087,103660.0,103650.0,0.97534252]
[1747217615524,0.59808087,103660.0,103650.0,0.8971452]
[1747217615825,0.59808087,103660.0,103650.0,0.97534252]
[1747217616328,0.43608087,103660.0,103650.0,0.97534252]
[1747217616824,0.43608087,103660.0,103650.0,0.8971452]
[1747217617025,0.43608087,103660.0,103650.0,0.97534252]
[1747217617225,0.59808087,103660.0,103650.0,0.97534252]
[1747217621524,0.63108087,103660.0,103650.0,0.97534252]
[1747217623627,0.58284737,103660.0,103650.0,0.97534252]
[1747217625232,0.58284737,103660.0,103650.0,0.8971452]
[1747217625421,0.58284737,103660.0,103650.0,0.97534252]
[1747217627227,0.38991847,103660.0,103650.0,0.97534252]
[1747217628224,0.22791847,103660.0,103650.0,0.97534252]
[1747217628432,0.22229776,103660.0,103650.0,0.97534252]
[1747217629528,0.22791847,103660.0,103650.0,0.97534252]
[1747217630430,0.19611847,103660.0,103650.0,1.05353984]
[1747217631131,0.19611847,103660.0,103650.0,0.97534252]
[1747217631521,0.19049776,103660.0,103650.0,2.47534252]
[1747217635226,0.09218262,103660.0,103650.0,2.47534252]
[1747217636936,0.09218262,103660.0,103650.0,2.3971452]
[1747217637136,0.09218262,103660.0,103650.0,2.47534252]
[1747217643637,0.06078262,103660.0,103650.0,2.47534252]
[1747217644138,0.15909776,103660.0,103650.0,2.47534252]
[1747217644338,0.15909776,103660.0,103650.0,2.55353984]
[1747217644530,0.19359776,103660.0,103650.0,2.55353984]
[1747217645241,0.19359776,103660.0,103650.0,2.47534252]
[1747217646942,0.19359776,103660.0,103650.0,2.69002252]
[1747217647138,0.09528262,103660.0,103650.0,2.69002252]
[1747217648248,0.09528262,103660.0,103650.0,2.85202252]
[1747217648740,0.09528262,103660.0,103650.0,2.85764323]
[1747217649942,0.09528262,103660.0,103650.0,2.77944591]
[1747217650241,0.09528262,103660.0,103650.0,2.85764323]
[1747217651647,0.19359776,103660.0,103650.0,2.85764323]
[1747217651844,0.19359776,103660.0,103650.0,2.85202252]
[1747217652235,0.19359776,103660.0,103650.0,2.69002252]
[1747217652746,0.19359776,103660.0,103650.0,2.6118252]
[1747217653045,0.19359776,103660.0,103650.0,2.69002252]
[1747217653743,0.19359776,103660.0,103650.0,2.6118252]
[1747217653937,0.19359776,103660.0,103650.0,2.69002252]
[1747217655854,0.22669776,103660.0,103650.0,2.69002252]
[1747217657752,0.22669776,103660.0,103650.0,2.70002252]
[1747217659654,0.49782378,103660.0,103650.0,1.9519452]
[1747217659845,0.49782378,103660.0,103650.0,0.6666252]
[1747217660249,0.65982378,103660.0,103650.0,0.6531252]
[1747217660549,1.02062378,103660.0,103650.0,0.6531252]
[1747217660945,1.02624449,103660.0,103650.0,0.4384452]
[1747217661141,1.10444181,103660.0,103650.0,0.4384452]
[1747217661343,1.10444181,103660.0,103650.0,0.3084452]
[1747217661749,1.02624449,103660.0,103650.0,0.3084452]
[1747217662253,1.10444181,103660.0,103650.0,0.3074452]
[1747217662450,1.02624449,103660.0,103650.0,0.3074452]
[1747217663048,1.02724449,103660.0,103650.0,0.3064452]
[1747217663261,1.11648022,103660.0,103650.0,0.3064452]
[1747217663550,0.6774829,103660.0,103650.0,0.75544252]
[1747217663748,0.6774829,103660.0,103650.0,0.6772452]
[1747217664655,0.6774829,103660.0,103650.0,0.3164452]
[1747217665057,0.8920829,103660.0,103650.0,0.3164452]
[1747217666056,0.8920829,103660.0,103650.0,0.3064452]
[1747217666252,0.97028022,103660.0,103650.0,0.3064452]
[1747217666744,1.40927754,103660.0,103650.0,0.1134978]
[1747217666948,1.40927754,103660.0,103650.0,0.3064452]
[1747217666949,1.33108022,103660.0,103650.0,0.3064452]
[1747217667653,1.18813644,103660.0,103650.0,0.38464252]
[1747217667854,0.41980774,103660.0,103650.0,0.86544252]
[1747217668157,0.25218703,103660.0,103650.0,1.11210252]
[1747217668356,0.21908703,103660.0,103650.0,1.17540252]
[1747217669459,0.21908703,103660.0,103650.0,1.17840252]
[1747217669861,0.21808703,103660.0,103650.0,1.17840252]
[1747217670154,0.38008703,103660.0,103650.0,1.18140252]
[1747217670562,0.38008703,103660.0,103650.0,2.68140252]
[1747217671163,0.21808703,103660.0,103650.0,2.68140252]
[1747217671462,0.21808703,103660.0,103650.0,2.69490252]
[1747217672355,0.09528262,103660.0,103650.0,2.69490252]
[1747217675154,0.10090333,103660.0,103650.0,2.69490252]
[1747217675560,0.10090333,103660.0,103650.0,2.77309984]
[1747217677264,0.09528262,103660.0,103650.0,2.77309984]
[1747217677964,0.09528262,103660.0,103650.0,2.41229984]
[1747217678165,0.09528262,103660.0,103650.0,3.13389984]
[1747217679763,0.37449363,103680.0,103670.0,0.1929101]
[1747217679764,0.13336203,103680.0,103670.0,0.1929101]
[1747217679971,0.16536203,103680.0,103670.0,1.04466474]
[1747217680152,0.32736203,103680.0,103670.0,0.84900742]
[1747217680357,0.32736203,103680.0,103670.0,1.16004129]
[1747217681364,0.32736203,103680.0,103670.0,1.20096856]
[1747217681565,0.32736203,103680.0,103670.0,1.21545635]
[1747217681964,0.32736203,103680.0,103670.0,1.20096856]
[1747217682566,0.52025353,103680.0,103670.0,1.20096856]
[1747217682867,0.32736203,103680.0,103670.0,1.21065608]
[1747217683062,0.32876203,103680.0,103670.0,1.21065608]
[1747217683363,0.32876203,103680.0,103670.0,1.22415608]
[1747217683364,0.16676203,103680.0,103670.0,1.22415608]
[1747217683664,0.19600694,103690.0,103680.0,0.1928915]
[1747217683861,0.22940694,103690.0,103680.0,1.00194068]
[1747217684265,0.19550694,103690.0,103680.0,2.59839594]
[1747217684466,0.26416228,103700.0,103690.0,0.1928729]
[1747217684660,0.29516228,103700.0,103690.0,1.03425749]
[1747217685064,0.29516228,103700.0,103690.0,1.13070345]
[1747217685566,0.26416228,103700.0,103690.0,1.13070345]
[1747217685968,0.26416228,103700.0,103690.0,1.34522345]
[1747217686670,0.26516228,103700.0,103690.0,1.34522345]
[1747217687471,0.26416228,103700.0,103690.0,1.34622345]
[1747217687864,0.26416228,103700.0,103690.0,1.34722345]
[1747217688459,0.26416228,103700.0,103690.0,0.79901886]
[1747217688664,0.33855228,103700.0,103690.0,1.22801886]
[1747217688869,0.38611228,103700.0,103690.0,1.22801886]
[1747217689067,0.38611228,103700.0,103690.0,0.79901886]
[1747217689272,0.77376658,103700.0,103690.0,0.79901886]
[1747217689475,0.58091228,103700.0,103690.0,0.79901886]
[1747217689676,0.77376658,103700.0,103690.0,2.29901886]
[1747217690177,0.6260933,103700.0,103690.0,1.93821886]
[1747217690374,0.6260933,103700.0,103690.0,1.90621886]
[1747217690561,0.63171401,103700.0,103690.0,1.90621886]
[1747217691161,0.63205401,103700.0,103690.0,1.90621886]
[1747217691671,0.7511786,103700.0,103690.0,1.82301886]
[1747217691971,0.7511786,103700.0,103690.0,0.09844596]
[1747217692470,0.7511786,103700.0,103690.0,0.29131886]
[1747217693366,1.1129786,103700.0,103690.0,0.09744596]
[1747217693675,1.1129786,103700.0,103690.0,0.29031886]
[1747217694578,1.1129786,103700.0,103690.0,0.28931886]
[1747217695469,1.3274586,103700.0,103690.0,0.28931886]
[1747217697573,0.63305401,103700.0,103690.0,0.40844345]
[1747217697782,0.63305401,103700.0,103690.0,0.93944345]
[1747217697984,0.63305401,103700.0,103690.0,0.61044345]
[1747217698173,0.63305401,103700.0,103690.0,0.49131886]
[1747217698568,0.6274333,103700.0,103690.0,0.49131886]
[1747217700277,0.6274333,103700.0,103690.0,0.61044345]
[1747217700681,0.6274333,103700.0,103690.0,0.35131886]
[1747217700876,0.6274333,103700.0,103690.0,0.43864345]
[1747217701071,0.6274333,103700.0,103690.0,0.31951886]
[1747217701274,0.6274333,103700.0,103690.0,0.28931886]
[1747217701577,0.99385401,103700.0,103690.0,0.28931886]
[1747217701771,0.99385401,103700.0,103690.0,0.09644596]
[1747217701772,1.1129786,103700.0,103690.0,0.09644596]
[1747217701981,1.1129786,103700.0,103690.0,0.28931886]
[1747217702168,0.99385401,103700.0,103690.0,0.28931886]
[1747217707784,0.9882333,103700.0,103690.0,0.28931886]
[1747217708875,0.9882333,103700.0,103690.0,0.32001886]
[1747217709276,1.02809688,103700.0,103690.0,0.32001886]
[1747217712286,1.24253688,103700.0,103690.0,0.32001886]
[1747217716982,1.2026733,103700.0,103690.0,0.32001886]
[1747217717793,1.2026733,103700.0,103690.0,0.35171886]
[1747217720982,1.2026733,103700.0,103690.0,0.38231886]
[1747217722886,0.9882333,103700.0,103690.0,0.38231886]
[1747217723092,1.2026333,103700.0,103690.0,0.38231886]
[1747217723793,0.9882333,103700.0,103690.0,0.38231886]
[1747217724091,1.2026333,103700.0,103690.0,0.38231886]
[1747217724290,1.0406333,103700.0,103690.0,0.38231886]
[1747217726695,0.8262333,103700.0,103690.0,0.50144345]
[1747217726987,0.4654333,103700.0,103690.0,0.50144345]
[1747217727393,0.4654333,103700.0,103690.0,0.46047566]
[1747217727593,0.3685333,103700.0,103690.0,0.47047566]
[1747217727794,0.3685333,103700.0,103690.0,0.83127566]
[1747217728401,0.3996333,103700.0,103690.0,0.83127566]
[1747217729394,0.3996333,103700.0,103690.0,0.87219982]
[1747217730396,0.56225832,103700.0,103690.0,0.87219982]
[1747217731288,0.56225832,103700.0,103690.0,0.86219982]
[1747217731483,0.59235832,103700.0,103690.0,0.86219982]
[1747217731692,0.95315832,103700.0,103690.0,0.50139982]
[1747217731892,0.62475832,103700.0,103690.0,0.50139982]
[1747217732294,0.62475832,103700.0,103690.0,0.38231886]
[1747217732890,0.62475832,103700.0,103690.0,0.74311886]
[1747217733397,0.62475832,103700.0,103690.0,0.38231886]
[1747217733599,0.62475832,103700.0,103690.0,0.50139982]
[1747217733901,0.62475832,103700.0,103690.0,0.38231886]
[1747217734090,0.62475832,103700.0,103690.0,0.39231886]
[1747217735694,0.62475832,103700.0,103690.0,0.87219982]
[1747217735894,0.62475832,103700.0,103690.0,0.51139982]
[1747217737095,0.62475832,103700.0,103690.0,0.50139982]
[1747217738506,0.62475832,103700.0,103690.0,0.38231886]
[1747217738692,0.62475832,103700.0,103690.0,0.86219982]
[1747217739094,0.4621333,103700.0,103690.0,0.86219982]
[1747217739295,0.4621333,103700.0,103690.0,0.88219982]
[1747217739494,0.236879,103700.0,103690.0,0.88219982]
[1747217739697,0.4297333,103700.0,103690.0,0.88219982]
[1747217739999,0.236879,103700.0,103690.0,0.88219982]
[1747217740201,0.3996333,103700.0,103690.0,0.88219982]
[1747217740400,0.3996333,103700.0,103690.0,0.89569982]
[1747217742701,0.206779,103700.0,103690.0,0.89569982]
[1747217742900,0.175679,103700.0,103690.0,0.89569982]
[1747217743101,0.175679,103700.0,103690.0,1.05769982]
[1747217743302,0.175679,103700.0,103690.0,1.04419982]
[1747217744303,0.27395673,103700.0,103690.0,2.55082053]
[1747217745402,0.27295673,103700.0,103690.0,2.55082053]
[1747217745603,0.27295673,103700.0,103690.0,2.55182053]
[1747217746193,0.27295673,103700.0,103690.0,2.76622053]
[1747217746393,0.27295673,103700.0,103690.0,2.77972053]
[1747217747904,0.24835874,103700.0,103690.0,2.77972053]
[1747217748901,0.24835874,103700.0,103690.0,2.66063957]
[1747217749106,0.24835874,103700.0,103690.0,2.77972053]
[1747217749303,0.24835874,103700.0,103690.0,2.81688941]
[1747217749510,0.24146371,103700.0,103690.0,2.81688941]
[1747217750201,0.24146371,103700.0,103690.0,2.91332541]
[1747217751301,0.11649734,103710.0,103700.0,0.1928543]
[1747217751609,0.11649734,103710.0,103700.0,1.15746414]
[1747217751911,0.11649734,103710.0,103700.0,1.2539008]
[1747217752109,0.11649734,103710.0,103700.0,1.4159008]
[1747217752511,0.11649734,103710.0,103700.0,2.9159008]
[1747217753009,0.11649734,103710.0,103700.0,2.9169008]
[1747217753207,0.11093329,103710.0,103700.0,2.99502572]
[1747217753405,0.31581676,103720.0,103710.0,0.1928357]
[1747217753610,0.27243676,103720.0,103710.0,1.22098636]
[1747217754007,0.27243676,103720.0,103710.0,1.31741372]
[1747217754203,0.27243676,103720.0,103710.0,1.47941372]
[1747217754399,0.05047383,103730.0,103720.0,0.1928171]
[1747217754614,0.05047383,103730.0,103720.0,1.11387243]
[1747217755005,0.00709383,103730.0,103720.0,2.71029049]
[1747217755209,0.02155383,103730.0,103720.0,2.87229049]
[1747217755506,0.11967669,103730.0,103720.0,2.87229049]
[1747217756100,0.11967669,103730.0,103720.0,2.87429049]
[1747217756306,0.11967669,103730.0,103720.0,2.97269849]
[1747217758404,0.11967669,103730.0,103720.0,2.98619849]
[1747217761114,0.02155383,103730.0,103720.0,4.07991849]
[1747217761606,3e-08,103730.0,103720.0,2.82991849]
[1747217762005,0.04900687,103740.0,103730.0,0.20980004]
[1747217762206,0.04900687,103740.0,103730.0,2.59767537]
[1747217762406,0.04900687,103740.0,103730.0,2.69407537]
[1747217762711,0.04900687,103740.0,103730.0,2.79048414]
[1747217763112,0.04900687,103740.0,103730.0,3.32147947]
[1747217763504,0.04900687,103740.0,103730.0,3.32347947]
[1747217763703,0.04900687,103740.0,103730.0,3.33809615]
[1747217764414,0.02245277,103740.0,103730.0,3.33809615]
[1747217764613,6e-05,103750.0,103740.0,0.19278]
[1747217764912,6e-05,103750.0,103740.0,1.34274266]
[1747217765102,6e-05,103750.0,103740.0,1.50474266]
[1747217765307,0.00770381,103780.0,103770.0,0.1927242]
[1747217765503,0.00735876,103790.0,103780.0,0.1927057]
[1747217765709,0.03641287,103790.0,103780.0,0.91220103]
[1747217765908,0.06811287,103790.0,103780.0,2.50859121]
[1747217766100,0.03641287,103790.0,103780.0,3.08565121]
[1747217766309,0.06921287,103790.0,103780.0,3.08565121]
[1747217767207,0.00591287,103790.0,103780.0,2.92365121]
[1747217767415,0.00591287,103790.0,103780.0,2.9332903]
[1747217767618,0.03651287,103790.0,103780.0,2.5047303]
[1747217767801,0.06931287,103790.0,103780.0,2.38573497]
[1747217768007,0.06931287,103790.0,103780.0,2.78231497]
[1747217768210,0.26199997,103790.0,103780.0,2.32153497]
[1747217768407,0.3809953,103790.0,103780.0,2.49413588]
[1747217768706,0.29489997,103790.0,103780.0,2.49413588]
[1747217768906,0.29489997,103790.0,103780.0,2.13333588]
[1747217769110,0.10221287,103790.0,103780.0,2.50386093]
[1747217769514,0.10221287,103790.0,103780.0,2.53636093]
[1747217769715,0.29489997,103790.0,103780.0,2.52763588]
[1747217769916,0.29489997,103790.0,103780.0,2.49513588]
[1747217770118,0.45689997,103790.0,103780.0,2.28089588]
[1747217770321,0.45689997,103790.0,103780.0,2.49513588]
[1747217770915,0.45689997,103790.0,103780.0,2.49509588]
[1747217771221,0.29489997,103790.0,103780.0,2.36509588]
[1747217773415,0.29489997,103790.0,103780.0,2.37859588]
[1747217773625,0.29489997,103790.0,103780.0,2.01679588]
[1747217774013,0.29489997,103790.0,103780.0,2.16339588]
[1747217774211,0.29489997,103790.0,103780.0,2.37759588]
[1747217774412,0.29589997,103790.0,103780.0,2.37759588]
[1747217774612,0.10321287,103790.0,103780.0,2.37759588]
[1747217776021,0.29589997,103790.0,103780.0,2.37759588]
[1747217776821,0.29589997,103790.0,103780.0,2.49759588]
[1747217779423,0.29589997,103790.0,103780.0,2.48409588]
[1747217780425,0.29589997,103790.0,103780.0,2.12329588]
[1747217781132,0.29589997,103790.0,103780.0,2.15489588]
[1747217781717,0.29589997,103790.0,103780.0,0.62329588]
[1747217782118,0.45789997,103790.0,103780.0,0.62329588]
[1747217782320,0.45789997,103790.0,103780.0,2.12329588]
[1747217783125,0.45789997,103790.0,103780.0,2.15559588]
[1747217783126,0.29589997,103790.0,103780.0,2.15559588]
[1747217783826,0.29589997,103790.0,103780.0,2.03559588]
[1747217784030,0.33924997,103790.0,103780.0,2.03559588]
[1747217789630,0.33924997,103790.0,103780.0,2.03537651]
[1747217789824,0.33924997,103790.0,103780.0,2.06717651]
[1747217791330,0.33924997,103790.0,103780.0,2.14520166]
[1747217791732,0.33924997,103790.0,103780.0,1.85297651]
[1747217791931,0.99219512,103790.0,103780.0,1.82117651]
[1747217792129,0.99219512,103790.0,103780.0,0.32117651]
[1747217793128,0.99219512,103790.0,103780.0,0.28887651]
[1747217793524,0.99219512,103790.0,103780.0,0.31907651]
[1747217795229,1.03309728,103790.0,103780.0,0.31907651]
[1747217796238,1.37944929,103790.0,103780.0,0.09639018]
[1747217796631,0.1927057,103780.0,103770.0,0.01699495]
[1747217796833,0.95205301,103780.0,103770.0,0.01699495]
[1747217797032,0.95205301,103780.0,103770.0,0.11334798]
[1747217797235,1.46041701,103780.0,103770.0,0.11334798]
[1747217797540,0.1927428,103760.0,103750.0,0.41588915]
[1747217797740,0.88659011,103760.0,103750.0,0.44818915]
[1747217797925,0.95259011,103760.0,103750.0,0.44818915]
[1747217798132,0.95259011,103760.0,103750.0,0.54455147]
[1747217798436,0.8336628,103760.0,103750.0,0.54455147]
[1747217799839,0.8336628,103760.0,103750.0,0.54855147]
[1747217800140,0.9956628,103760.0,103750.0,0.54855147]
[1747217800333,0.9956628,103760.0,103750.0,0.53505147]
[1747217800740,0.9956628,103760.0,103750.0,0.53205147]
[1747217802739,0.7815428,103760.0,103750.0,0.53205147]
[1747217802941,1.0390628,103760.0,103750.0,0.53205147]
[1747217803132,0.8770628,103760.0,103750.0,0.53205147]
[1747217804242,1.0390628,103760.0,103750.0,0.53205147]
[1747217804539,1.0695628,103760.0,103750.0,0.53205147]
[1747217806140,0.9075628,103760.0,103750.0,0.53205147]
[1747217808031,0.6934028,103760.0,103750.0,0.53205147]
[1747217808435,0.9075628,103760.0,103750.0,0.53205147]
[1747217809740,0.6934028,103760.0,103750.0,0.53205147]
[1747217809945,0.9075628,103760.0,103750.0,0.53205147]
[1747217816545,0.9075628,103760.0,103750.0,0.49960584]
[1747217817132,0.9075628,103760.0,103750.0,0.53250584]
[1747217817336,0.98563763,103760.0,103750.0,0.53250584]
[1747217819744,0.40416,103760.0,103750.0,0.61058067]
[1747217819937,0.04336,103760.0,103750.0,0.99138067]
[1747217820141,0.04336,103760.0,103750.0,1.15338067]
[1747217820448,0.04336,103760.0,103750.0,1.15900138]
[1747217820751,0.04336,103760.0,103750.0,2.65900138]
[1747217821438,0.04336,103760.0,103750.0,2.66688067]
[1747217822343,0.09794526,103770.0,103760.0,0.1927428]
[1747217822646,0.09794526,103780.0,103770.0,0.1927242]
[1747217822844,0.09794526,103780.0,103770.0,0.85499903]
[1747217823349,0.12854526,103780.0,103770.0,2.3958126]
[1747217823548,0.12854526,103780.0,103770.0,2.4921842]
[1747217824348,0.12854526,103780.0,103770.0,2.4931842]
[1747217824548,0.12854526,103780.0,103770.0,2.3742958]
[1747217824740,0.12854526,103780.0,103770.0,2.4931842]
[1747217824939,0.09794526,103780.0,103770.0,2.4931842]
[1747217825140,0.09794526,103780.0,103770.0,2.6551842]
[1747217825551,0.09794526,103780.0,103770.0,2.66080491]
[1747217825749,0.09794526,103780.0,103770.0,2.67430491]
[1747217826751,0.09794526,103780.0,103770.0,2.6696842]
[1747217826952,0.09794526,103780.0,103770.0,2.6716842]
[1747217827250,0.09794526,103780.0,103770.0,2.8859642]